bitfinex/quotes_SOLUSD_20230105
["timestamp","ask_amount","ask_price","bid_price","bid_amount"]
[1672929122628,56.92,13.187,13.172,118.1588]
[1672929122839,20.0,13.186,13.173,20.0]
[1672929123049,56.93,13.185,13.173,20.0]
[1672929123276,56.93,13.185,13.175,20.0]
[1672929123462,56.92,13.187,13.176,20.0]
[1672929123678,20.0,13.186,13.176,20.0]
[1672929124012,20.0,13.186,13.175,20.0]
[1672929124315,20.0,13.186,13.173,68.35]
[1672929125049,20.0,13.186,13.174,17.0]
[1672929125259,20.0,13.186,13.175,20.0]
[1672929125473,73.93,13.185,13.175,20.0]
[1672929125788,20.0,13.184,13.175,20.0]
[1672929126003,56.94,13.183,13.169,20.0]
[1672929126183,20.0,13.182,13.169,20.0]
[1672929126392,20.0,13.182,13.168,47.79]
[1672929126608,20.0,13.179,13.165,117.236]
[1672929126825,20.0,13.179,13.166,67.59]
[1672929127453,20.0,13.179,13.167,20.0]
[1672929127877,20.0,13.179,13.168,17.0]
[1672929128717,20.0,13.179,13.169,22.41737149]
[1672929128920,20.0,13.179,13.17,17.0]
[1672929129341,59.33,13.18,13.17,17.0]
[1672929129552,59.33,13.18,13.17,22.41737149]
[1672929129774,116.28,13.18,13.166,20.0]
[1672929129980,116.28,13.18,13.168,22.41737149]
[1672929131027,116.28,13.18,13.169,17.0]
[1672929132392,96.28,13.18,13.169,17.0]
[1672929132826,56.93,13.184,13.171,20.0]
[1672929133034,56.92,13.186,13.173,20.0]
[1672929133469,20.0,13.185,13.174,39.41737149]
[1672929133859,20.0,13.185,13.175,42.41737149]
[1672929134187,20.0,13.185,13.176,17.0]
[1672929134392,20.0,13.185,13.175,20.0]
[1672929134623,20.0,13.185,13.173,20.0]
[1672929134803,20.0,13.185,13.174,17.0]
[1672929135019,20.0,13.185,13.175,20.0]
[1672929135449,76.92,13.186,13.175,20.0]
[1672929135669,56.92,13.186,13.173,20.0]
[1672929136513,56.92,13.186,13.174,17.0]
[1672929136708,56.92,13.186,13.175,20.0]
[1672929137042,110.8393,13.187,13.176,17.0]
[1672929137351,110.8393,13.187,13.176,39.41737149]
[1672929137885,110.8393,13.187,13.178,20.0]
[1672929138070,110.8393,13.187,13.179,17.0]
[1672929138493,110.8393,13.187,13.178,17.0]
[1672929138716,56.91,13.189,13.178,17.0]
[1672929138918,56.89,13.194,13.179,42.41737149]
[1672929139133,56.89,13.194,13.18,17.0]
[1672929139338,56.89,13.194,13.181,20.0]
[1672929139551,56.89,13.194,13.182,17.0]
[1672929139552,20.0,13.193,13.182,17.0]
[1672929139772,20.0,13.193,13.183,20.0]
[1672929140590,20.0,13.193,13.179,22.41737149]
[1672929140591,39.35,13.19,13.179,22.41737149]
[1672929140804,39.35,13.19,13.175,56.97]
[1672929141036,39.35,13.19,13.168,39.60390586]
[1672929141037,56.91,13.189,13.176,22.41737149]
[1672929141348,20.0,13.188,13.176,22.41737149]
[1672929141757,136.9883,13.188,13.176,22.41737149]
[1672929142177,116.9883,13.188,13.176,22.41737149]
[1672929142391,116.9883,13.188,13.177,17.0]
[1672929142588,116.9883,13.188,13.178,20.0]
[1672929142804,116.9883,13.188,13.179,17.0]
[1672929144176,56.91,13.189,13.179,39.41737149]
[1672929144392,56.89,13.194,13.179,39.41737149]
[1672929144603,20.0,13.193,13.18,20.0]
[1672929144805,56.9,13.192,13.182,20.0]
[1672929145010,76.89,13.193,13.183,17.0]
[1672929145857,76.89,13.193,13.183,39.41737149]
[1672929146072,76.89,13.193,13.183,17.0]
[1672929146268,110.773,13.195,13.183,96.35737149]
[1672929146487,110.773,13.195,13.185,20.0]
[1672929146689,110.773,13.195,13.186,37.0]
[1672929148292,110.773,13.195,13.186,59.41737149]
[1672929148477,110.773,13.195,13.186,20.0]
[1672929149014,110.773,13.195,13.184,20.0]
[1672929150266,20.0,13.193,13.184,20.0]
[1672929150475,20.0,13.193,13.179,56.95]
[1672929150687,39.33,13.19,13.178,56.96]
[1672929150917,39.33,13.19,13.177,42.41737149]
[1672929151535,96.24,13.19,13.177,42.41737149]
[1672929151853,96.24,13.19,13.177,22.41737149]
[1672929152066,20.0,13.189,13.178,17.0]
[1672929152569,96.24,13.19,13.178,17.0]
[1672929153221,20.0,13.189,13.178,17.0]
[1672929155438,20.0,13.187,13.178,17.0]
[1672929155962,168.4177,13.188,13.178,17.0]
[1672929156158,111.5077,13.188,13.178,17.0]
[1672929156588,111.5077,13.188,13.178,39.41737149]
[1672929161321,111.5077,13.188,13.174,182.9309]
[1672929161546,76.92,13.187,13.175,20.0]
[1672929163523,76.92,13.187,13.176,17.0]
[1672929170052,99.33737149,13.187,13.176,17.0]
[1672929171004,37.0,13.186,13.17,22.41737149]
[1672929171196,20.0,13.179,13.162,20.0]
[1672929171526,76.95,13.179,13.163,57.02]
[1672929172142,76.95,13.179,13.167,77.78636075]
[1672929174169,76.95,13.179,13.168,17.0]
[1672929174713,76.95,13.179,13.167,77.78636075]
[1672929176274,76.95,13.179,13.168,17.0]
[1672929180788,76.95,13.179,13.168,12.0]
[1672929184881,56.95,13.179,13.168,12.0]
[1672929185414,20.0,13.178,13.168,12.0]
[1672929186060,20.0,13.176,13.168,12.0]
[1672929187950,20.0,13.174,13.168,12.0]
[1672929188700,20.0,13.174,13.161,177.87414972]
[1672929188701,56.98,13.173,13.161,111.9301]
[1672929188893,39.35,13.17,13.154,57.06]
[1672929189100,20.0,13.169,13.155,20.0]
[1672929189296,56.99,13.171,13.156,79.46737149]
[1672929189507,130.7942,13.174,13.157,40.0]
[1672929189732,130.7942,13.174,13.158,57.04]
[1672929189928,130.7942,13.174,13.16,20.0]
[1672929190145,130.7942,13.174,13.161,20.0]
[1672929190361,130.7942,13.174,13.162,17.0]
[1672929190569,130.7942,13.174,13.163,20.0]
[1672929190791,130.7942,13.174,13.164,17.0]
[1672929190986,130.7942,13.174,13.165,20.0]
[1672929191529,130.7942,13.174,13.161,20.0]
[1672929192449,56.98,13.173,13.161,20.0]
[1672929192884,20.0,13.172,13.161,20.0]
[1672929193498,20.0,13.172,13.161,18.5]
[1672929194030,20.0,13.172,13.162,17.0]
[1672929194676,20.0,13.172,13.162,16.5]
[1672929195847,20.0,13.172,13.163,20.0]
[1672929196776,20.0,13.172,13.164,17.0]
[1672929196986,20.0,13.172,13.165,20.0]
[1672929197206,20.0,13.172,13.166,15.5]
[1672929197842,20.0,13.172,13.15,13.09]
[1672929198033,20.0,13.17,13.157,46.01372968]
[1672929198792,33.12,13.17,13.157,46.01372968]
[1672929199417,33.12,13.17,13.157,22.41737149]
[1672929199829,20.0,13.17,13.157,22.41737149]
[1672929200581,20.0,13.17,13.158,17.0]
[1672929200978,20.0,13.17,13.157,17.0]
[1672929202157,33.12,13.17,13.157,17.0]
[1672929202354,57.0,13.169,13.155,176.3628]
[1672929202578,57.0,13.169,13.156,20.0]
[1672929202887,20.0,13.168,13.156,42.41737149]
[1672929203078,20.0,13.168,13.156,20.0]
[1672929203290,20.0,13.168,13.157,22.41737149]
[1672929203720,20.0,13.168,13.158,17.0]
[1672929204142,20.0,13.168,13.158,39.41737149]
[1672929205113,20.0,13.168,13.156,66.01372968]
[1672929205817,20.0,13.166,13.156,66.01372968]
[1672929207708,20.0,13.166,13.157,17.0]
[1672929208661,20.0,13.166,13.156,20.0]
[1672929210574,20.0,13.166,13.156,19.5]
[1672929210769,19.5,13.166,13.156,19.5]
[1672929210978,19.5,13.166,13.157,17.0]
[1672929211305,19.5,13.166,13.156,19.5]
[1672929212452,19.5,13.166,13.157,17.0]
[1672929213085,19.5,13.166,13.156,19.5]
[1672929213820,57.01,13.165,13.156,19.5]
[1672929214442,20.0,13.164,13.156,19.5]
[1672929215087,20.0,13.164,13.157,17.0]
[1672929216446,20.0,13.164,13.156,19.5]
[1672929218800,57.02,13.163,13.156,19.5]
[1672929219114,20.0,13.164,13.156,19.5]
[1672929219520,20.0,13.164,13.154,20.0]
[1672929219949,20.0,13.162,13.154,20.0]
[1672929220592,20.0,13.162,13.151,20.0]
[1672929221555,13.12,13.16,13.149,5.0233365]
[1672929221761,131.0908,13.16,13.149,5.0233365]
[1672929222148,20.0,13.159,13.149,5.0233365]
[1672929223407,77.04,13.159,13.149,5.0233365]
[1672929228572,99.45737149,13.159,13.149,5.0233365]
[1672929231606,77.04,13.159,13.149,5.0233365]
[1672929231846,99.45737149,13.159,13.149,5.0233365]
[1672929232342,147.94614287,13.159,13.149,5.0233365]
[1672929233803,17.0,13.158,13.149,5.0233365]
[1672929234009,97.05,13.157,13.149,5.0233365]
[1672929234217,17.0,13.156,13.149,5.0233365]
[1672929234444,20.0,13.154,13.149,5.0233365]
[1672929234655,20.0,13.152,13.133,182.3268]
[1672929234861,57.07,13.151,13.133,182.3268]
[1672929235075,20.0,13.15,13.133,284.59797629]
[1672929235276,57.07,13.151,13.133,284.59797629]
[1672929235496,151.11,13.17,13.135,20.0]
[1672929235497,20.0,13.155,13.135,20.0]
[1672929235815,20.0,13.153,13.137,20.0]
[1672929236032,20.0,13.153,13.138,189.3368]
[1672929236216,20.0,13.155,13.139,20.0]
[1672929236423,57.05,13.156,13.14,71.72]
[1672929236634,77.05,13.157,13.141,20.0]
[1672929236849,77.05,13.157,13.142,71.36]
[1672929237282,99.46737149,13.157,13.142,37.0]
[1672929237496,153.59909136,13.157,13.142,37.0]
[1672929238022,17.0,13.156,13.142,20.0]
[1672929238236,20.0,13.154,13.142,20.0]
[1672929238446,20.0,13.154,13.14,20.0]
[1672929239287,20.0,13.154,13.141,36.37]
[1672929239485,20.0,13.154,13.142,20.0]
[1672929239699,20.0,13.154,13.143,17.0]
[1672929240131,20.0,13.154,13.144,20.0]
[1672929240440,77.06,13.154,13.145,17.0]
[1672929240637,20.0,13.154,13.145,17.0]
[1672929240966,20.0,13.154,13.146,20.0]
[1672929241175,42.41737149,13.154,13.146,20.0]
[1672929241382,20.0,13.152,13.146,20.0]
[1672929241586,20.0,13.152,13.14,20.0]
[1672929242851,20.0,13.152,13.141,17.0]
[1672929243060,20.0,13.152,13.142,20.0]
[1672929243272,20.0,13.152,13.143,17.0]
[1672929243481,20.0,13.152,13.144,20.0]
[1672929243686,20.0,13.152,13.145,17.0]
[1672929243916,20.0,13.152,13.146,20.0]
[1672929244446,20.0,13.152,13.144,20.0]
[1672929245186,20.0,13.152,13.14,20.0]
[1672929245391,20.0,13.152,13.141,17.0]
[1672929246033,20.0,13.152,13.142,20.0]
[1672929246236,20.0,13.152,13.143,17.0]
[1672929246442,20.0,13.152,13.144,20.0]
[1672929246652,13.08,13.15,13.143,17.0]
[1672929246869,13.08,13.15,13.139,116.2815]
[1672929247078,20.0,13.149,13.14,17.0]
[1672929247909,33.08,13.15,13.14,17.0]
[1672929248236,20.0,13.15,13.14,17.0]
[1672929248424,77.07,13.152,13.14,17.0]
[1672929249080,234.4794,13.153,13.14,17.0]
[1672929249266,116.4434,13.153,13.142,20.0]
[1672929249483,116.4434,13.153,13.143,17.0]
[1672929249913,57.05,13.156,13.144,20.0]
[1672929250444,42.41737149,13.155,13.142,20.0]
[1672929250653,57.06,13.154,13.141,20.0]
[1672929250872,20.0,13.153,13.141,20.0]
[1672929251053,20.0,13.153,13.14,20.0]
[1672929252005,20.0,13.153,13.141,17.0]
[1672929252215,20.0,13.153,13.142,20.0]
[1672929252420,20.0,13.155,13.143,17.0]
[1672929252846,20.0,13.155,13.144,20.0]
[1672929253059,20.0,13.155,13.145,17.0]
[1672929253268,20.0,13.155,13.146,20.0]
[1672929253473,57.05,13.156,13.147,17.0]
[1672929253796,20.0,13.155,13.147,17.0]
[1672929254009,20.0,13.155,13.146,20.0]
[1672929254221,20.0,13.155,13.144,20.0]
[1672929254415,20.0,13.155,13.145,17.0]
[1672929254622,20.0,13.155,13.146,20.0]
[1672929256958,77.05,13.157,13.147,17.0]
[1672929257597,57.05,13.157,13.147,17.0]
[1672929260224,20.0,13.156,13.146,20.0]
[1672929260539,57.06,13.155,13.144,20.0]
[1672929260959,20.0,13.154,13.144,20.0]
[1672929262958,20.0,13.154,13.145,17.0]
[1672929263161,20.0,13.154,13.146,20.0]
[1672929266422,57.06,13.155,13.146,20.0]
[1672929267795,20.0,13.154,13.146,20.0]
[1672929270299,20.0,13.154,13.136,29.96]
[1672929270300,20.0,13.152,13.136,29.96]
[1672929270510,13.08,13.15,13.136,108.0933]
[1672929270937,20.0,13.149,13.136,108.0933]
[1672929271784,77.08,13.149,13.136,108.0933]
[1672929272819,99.49737149,13.149,13.136,108.0933]
[1672929273455,147.11431047,13.149,13.136,108.0933]
[1672929273884,17.0,13.148,13.136,108.0933]
[1672929274095,20.0,13.147,13.136,108.0933]
[1672929274411,20.0,13.147,13.133,18.56]
[1672929274412,17.0,13.146,13.133,18.56]
[1672929274614,13.08,13.14,13.134,20.0]
[1672929275367,13.08,13.14,13.13,20.0]
[1672929276208,13.08,13.14,13.129,20.0]
[1672929276821,13.08,13.14,13.13,15.88]
[1672929277034,13.08,13.14,13.131,20.0]
[1672929277243,13.08,13.14,13.132,17.0]
[1672929277455,13.08,13.14,13.133,20.0]
[1672929279149,13.08,13.14,13.128,18.05]
[1672929279348,20.0,13.138,13.126,18.17]
[1672929279973,109.1159,13.139,13.126,18.17]
[1672929280184,109.1159,13.139,13.128,17.0]
[1672929280975,20.0,13.138,13.128,17.0]
[1672929281800,109.1159,13.139,13.128,17.0]
[1672929282018,20.0,13.138,13.128,17.0]
[1672929282232,20.0,13.138,13.126,18.17]
[1672929282852,109.1159,13.139,13.126,18.17]
[1672929283173,20.0,13.141,13.121,20.0]
[1672929283174,117.3768,13.146,13.128,42.88]
[1672929283381,20.0,13.145,13.129,20.0]
[1672929283569,20.0,13.145,13.13,26.56]
[1672929283781,20.0,13.145,13.131,17.0]
[1672929284008,19.5,13.145,13.132,48.38]
[1672929284215,19.5,13.145,13.133,17.0]
[1672929284509,19.5,13.145,13.134,49.39]
[1672929284776,19.5,13.145,13.135,17.0]
[1672929284982,117.3768,13.146,13.135,17.0]
[1672929285162,117.3768,13.146,13.135,39.41737149]
[1672929285402,117.3768,13.146,13.135,69.34737149]
[1672929286010,117.3768,13.146,13.136,20.0]
[1672929286212,117.3768,13.146,13.137,51.76]
[1672929286429,117.3768,13.146,13.137,17.0]
[1672929286956,114.9215,13.149,13.139,20.0]
[1672929287145,114.9215,13.149,13.14,17.0]
[1672929287358,57.07,13.152,13.14,17.0]
[1672929287571,108.2197,13.157,13.141,64.35]
[1672929287783,108.2197,13.157,13.141,204.45707149]
[1672929288022,108.2197,13.157,13.142,59.41737149]
[1672929288204,57.05,13.156,13.143,20.0]
[1672929288409,79.46737149,13.156,13.144,17.0]
[1672929288628,20.0,13.155,13.145,20.0]
[1672929288847,20.0,13.155,13.146,17.0]
[1672929289284,20.0,13.156,13.146,17.0]
[1672929289472,77.05,13.156,13.146,17.0]
[1672929290402,57.05,13.156,13.146,17.0]
[1672929290830,20.0,13.159,13.146,17.0]
[1672929290831,20.0,13.157,13.146,17.0]
[1672929291039,20.0,13.157,13.145,17.0]
[1672929292285,57.04,13.158,13.145,17.0]
[1672929292516,57.04,13.159,13.145,39.41737149]
[1672929292752,57.04,13.159,13.146,20.0]
[1672929292936,57.04,13.159,13.147,17.0]
[1672929293992,229.995,13.16,13.147,66.75]
[1672929294180,229.995,13.16,13.148,20.0]
[1672929294390,229.995,13.16,13.149,17.0]
[1672929294936,57.03,13.162,13.15,20.0]
[1672929295159,57.02,13.163,13.151,17.0]
[1672929295664,57.02,13.164,13.152,20.0]
[1672929295875,116.7798,13.165,13.153,37.0]
[1672929296065,116.7798,13.165,13.154,20.0]
[1672929296283,116.7798,13.165,13.155,17.0]
[1672929296508,116.7798,13.165,13.156,20.0]
[1672929296924,57.01,13.166,13.157,17.0]
[1672929297138,170.5781,13.169,13.157,17.0]
[1672929300273,20.0,13.166,13.156,20.0]
[1672929300489,77.01,13.166,13.154,20.0]
[1672929301208,17.0,13.165,13.151,20.0]
[1672929301416,57.02,13.164,13.15,20.0]
[1672929301629,20.0,13.164,13.15,20.0]
[1672929303629,6.59,13.16,13.15,20.0]
[1672929305098,57.02,13.163,13.151,20.0]
[1672929305314,57.01,13.165,13.151,20.0]
[1672929305629,57.0,13.168,13.152,39.41737149]
[1672929305859,170.5781,13.169,13.153,97.07]
[1672929306068,170.5781,13.169,13.154,17.0]
[1672929306258,170.5781,13.169,13.155,20.0]
[1672929306470,170.5781,13.169,13.156,17.0]
[1672929306693,170.5781,13.169,13.157,20.0]
[1672929306909,170.5781,13.169,13.158,17.0]
[1672929308169,170.5781,13.169,13.157,17.0]
[1672929308385,170.5781,13.169,13.156,17.0]
[1672929309541,20.0,13.168,13.156,17.0]
[1672929309942,57.01,13.166,13.156,17.0]
[1672929310157,20.0,13.165,13.156,17.0]
[1672929310364,20.0,13.165,13.155,20.0]
[1672929310691,20.0,13.165,13.154,20.0]
[1672929310910,6.57,13.16,13.154,20.0]
[1672929311095,6.57,13.16,13.153,20.0]
[1672929311305,6.57,13.16,13.15,20.0]
[1672929313421,6.57,13.16,13.146,129.9967]
[1672929313422,57.04,13.159,13.146,129.9967]
[1672929313633,57.04,13.159,13.146,109.9967]
[1672929313846,20.0,13.158,13.146,109.9967]
[1672929314033,57.05,13.157,13.146,109.9967]
[1672929314890,57.05,13.157,13.147,17.0]
[1672929315734,57.05,13.157,13.146,17.0]
[1672929315946,20.0,13.157,13.147,20.0]
[1672929316166,20.0,13.157,13.148,17.0]
[1672929316379,57.04,13.158,13.148,17.0]
[1672929316702,165.4766,13.159,13.148,17.0]
[1672929317126,20.0,13.158,13.147,17.0]
[1672929321100,20.0,13.158,13.146,20.0]
[1672929321318,20.0,13.156,13.146,20.0]
[1672929322591,20.0,13.156,13.147,17.0]
[1672929323851,57.05,13.157,13.147,17.0]
[1672929324048,57.02,13.163,13.148,57.09]
[1672929324247,57.02,13.164,13.149,37.0]
[1672929324459,20.0,13.165,13.151,20.0]
[1672929324677,57.02,13.164,13.152,37.0]
[1672929324899,20.0,13.163,13.152,37.0]
[1672929326685,42.41737149,13.163,13.152,37.0]
[1672929327314,13.06,13.16,13.147,57.09]
[1672929327526,123.5135,13.16,13.144,57.11]
[1672929327743,145.93087149,13.16,13.144,57.11]
[1672929327953,20.0,13.159,13.144,57.11]
[1672929328363,20.0,13.157,13.144,57.11]
[1672929328577,77.05,13.157,13.143,116.452]
[1672929328801,99.46737149,13.157,13.143,116.452]
[1672929328996,99.46737149,13.157,13.144,20.0]
[1672929329323,208.67117149,13.157,13.144,20.0]
[1672929330589,17.0,13.156,13.144,20.0]
[1672929330793,57.06,13.155,13.144,20.0]
[1672929331007,79.47737149,13.155,13.144,20.0]
[1672929331214,42.41737149,13.154,13.144,20.0]
[1672929331516,22.41737149,13.153,13.144,20.0]
[1672929331727,79.48737149,13.153,13.144,20.0]
[1672929331937,20.0,13.152,13.144,20.0]
[1672929332462,20.0,13.152,13.14,20.0]
[1672929333104,13.06,13.15,13.133,57.15]
[1672929333313,20.0,13.149,13.135,20.0]
[1672929333528,20.0,13.149,13.136,57.14]
[1672929333731,20.0,13.149,13.134,57.15]
[1672929333966,42.41737149,13.149,13.134,57.15]
[1672929334151,57.09,13.148,13.134,57.15]
[1672929334358,20.0,13.147,13.134,57.15]
[1672929334784,20.0,13.147,13.133,175.4582]
[1672929335000,119.9092,13.146,13.134,20.0]
[1672929335211,20.0,13.145,13.135,17.0]
[1672929335620,20.0,13.145,13.136,20.0]
[1672929335830,20.0,13.145,13.137,17.0]
[1672929337400,20.0,13.145,13.136,20.0]
[1672929337614,20.0,13.145,13.134,20.0]
[1672929339107,119.9092,13.146,13.135,17.0]
[1672929339319,177.0092,13.146,13.136,20.0]
[1672929339541,119.9092,13.146,13.137,17.0]
[1672929339756,20.0,13.145,13.137,17.0]
[1672929341440,119.9092,13.146,13.137,17.0]
[1672929343743,20.0,13.145,13.137,17.0]
[1672929344277,119.9092,13.146,13.137,17.0]
[1672929350474,57.09,13.148,13.137,17.0]
[1672929350684,20.0,13.159,13.137,17.0]
[1672929350685,20.0,13.149,13.137,17.0]
[1672929352245,20.0,13.147,13.137,17.0]
[1672929355296,57.09,13.148,13.137,17.0]
[1672929356050,20.0,13.147,13.137,17.0]
[1672929357846,20.0,13.145,13.137,17.0]
[1672929361004,20.0,13.145,13.131,57.16]
[1672929361217,39.33,13.14,13.126,167.4561]
[1672929362159,20.0,13.139,13.126,167.4561]
[1672929362673,130.3033,13.139,13.126,167.4561]
[1672929363298,110.3033,13.139,13.126,167.4561]
[1672929363844,20.0,13.138,13.126,167.4561]
[1672929364893,96.45,13.14,13.127,17.0]
[1672929365087,22.41737149,13.142,13.13,39.52]
[1672929365296,20.0,13.149,13.132,20.0]
[1672929365509,20.0,13.149,13.133,94.15]
[1672929365718,77.08,13.149,13.133,37.0]
[1672929366138,118.2773,13.148,13.133,37.0]
[1672929366348,57.09,13.147,13.133,37.0]
[1672929366563,128.6461,13.146,13.133,20.0]
[1672929366873,20.0,13.144,13.133,20.0]
[1672929367087,74.11,13.143,13.129,20.0]
[1672929367306,20.0,13.139,13.127,57.18]
[1672929367521,128.6461,13.139,13.127,57.18]
[1672929367743,128.6461,13.139,13.126,167.4561]
[1672929368572,128.6461,13.139,13.127,17.0]
[1672929368780,128.6461,13.139,13.126,167.4561]
[1672929368979,20.0,13.137,13.126,110.2761]
[1672929369514,20.0,13.137,13.127,22.41737149]
[1672929370479,185.7761,13.139,13.127,22.41737149]
[1672929370874,128.6461,13.139,13.127,22.41737149]
[1672929371326,128.6461,13.139,13.128,17.0]
[1672929371716,128.6461,13.139,13.128,39.41737149]
[1672929372136,128.6461,13.139,13.128,22.41737149]
[1672929372355,17.0,13.138,13.126,110.2761]
[1672929372564,20.0,13.137,13.126,132.69347149]
[1672929376026,20.0,13.137,13.126,110.2761]
[1672929376768,20.0,13.137,13.126,167.4561]
[1672929376977,20.0,13.137,13.126,110.2761]
[1672929377622,17.0,13.136,13.126,54.95]
[1672929377826,17.0,13.136,13.124,54.96]
[1672929378023,133.1025,13.136,13.125,20.0]
[1672929378234,20.0,13.135,13.125,20.0]
[1672929379703,20.0,13.135,13.126,54.97]
[1672929380124,20.0,13.135,13.125,20.0]
[1672929380346,20.0,13.135,13.126,17.0]
[1672929380545,20.0,13.135,13.126,71.97]
[1672929381197,116.1025,13.136,13.126,71.97]
[1672929382568,20.0,13.135,13.126,71.97]
[1672929382885,20.0,13.135,13.126,17.0]
[1672929383073,20.0,13.135,13.126,74.18]
[1672929383283,20.0,13.135,13.126,17.0]
[1672929385922,116.1025,13.136,13.126,17.0]
[1672929386977,116.1025,13.136,13.126,39.41737149]
[1672929387166,116.1025,13.136,13.126,96.59737149]
[1672929388757,116.1025,13.136,13.126,74.18]
[1672929389163,116.1025,13.136,13.126,17.0]
[1672929392111,116.1025,13.136,13.126,16.0]
[1672929393482,108.6461,13.139,13.126,38.41737149]
[1672929394837,108.6461,13.139,13.126,95.59737149]
[1672929395040,108.6461,13.139,13.126,38.41737149]
[1672929395260,117.5244,13.143,13.127,57.18]
[1672929395470,117.5244,13.143,13.128,17.0]
[1672929395690,117.5244,13.143,13.13,20.0]
[1672929395891,117.5244,13.143,13.131,37.0]
[1672929397381,117.5244,13.143,13.131,59.41737149]
[1672929397574,117.5244,13.143,13.132,20.0]
[1672929397906,57.1,13.145,13.133,37.0]
[1672929398221,175.0888,13.16,13.134,50.23790838]
[1672929398418,175.0888,13.16,13.135,94.14]
[1672929398621,13.12,13.15,13.136,108.7539]
[1672929398837,57.08,13.149,13.136,108.7539]
[1672929399259,20.0,13.148,13.136,108.7539]
[1672929399463,20.0,13.146,13.136,108.7539]
[1672929400422,130.5518,13.146,13.136,108.7539]
[1672929401685,110.5518,13.146,13.136,108.7539]
[1672929402510,110.5518,13.146,13.137,17.0]
[1672929403787,110.5518,13.146,13.137,39.41737149]
[1672929405993,170.5562,13.149,13.137,39.41737149]
[1672929406309,57.08,13.149,13.137,39.41737149]
[1672929406524,57.06,13.155,13.139,20.0]
[1672929406709,168.5353,13.158,13.14,57.12]
[1672929406918,168.5353,13.158,13.141,57.0]
[1672929407139,20.0,13.157,13.141,79.41737149]
[1672929407351,57.05,13.156,13.142,22.41737149]
[1672929407555,57.05,13.156,13.144,20.0]
[1672929407763,111.4953,13.158,13.145,20.0]
[1672929407764,57.05,13.157,13.145,20.0]
[1672929408390,20.0,13.156,13.145,20.0]
[1672929408624,57.06,13.155,13.143,20.0]
[1672929408815,77.05,13.157,13.144,17.0]
[1672929409038,20.0,13.156,13.145,20.0]